[Event "December 19 Early 2023"]
[Site "https://www.chess.com"]
[Date "2023.12.19"]
[Round "5"]
[White "Le, Tuan Minh"]
[Black "Klukin, Kirill"]
[Result "1/2-1/2"]
[Board "11"]
[TimeControl "180+1"]
[WhiteFideId "12401153"]
[BlackFideId "24199273"]
[WhiteElo "2561"]
[BlackElo "2348"]
[WhiteTeam "VIE"]
[BlackTeam "RUS"]
[WhiteClock "0:00:04"]
[BlackClock "0:00:05"]

1. d4 {[%clk 0:02:36]}  d5 {[%clk 0:02:59]} 2. Nf3 {[%clk 0:02:33]}  e6 {[%clk 0:02:51]} 3. Bf4 {[%clk 0:02:30]}  Bd6 {[%clk 0:02:42]} 4. e3 {[%clk 0:02:21]}  Ne7 {[%clk 0:02:34]} 5. Nbd2 {[%clk 0:02:19]}  Ng6 {[%clk 0:02:30]} 6. Bg3 {[%clk 0:02:19]}  b6 {[%clk 0:02:26]} 7. Bd3 {[%clk 0:02:12]}  Bb7 {[%clk 0:02:18]} 8. e4 {[%clk 0:02:06]}  dxe4 {[%clk 0:02:12]} 9. Bxe4 {[%clk 0:02:02]}  Bxe4 {[%clk 0:02:10]} 10. Nxe4 {[%clk 0:02:02]}  Bxg3 {[%clk 0:02:09]} 11. hxg3 {[%clk 0:02:01]}  Nd7 {[%clk 0:02:06]} 12. Qe2 {[%clk 0:01:56]}  Nf6 {[%clk 0:01:40]} 13. Nxf6+ {[%clk 0:01:56]}  gxf6 {[%clk 0:01:41]} 14. O-O {[%clk 0:01:53]}  O-O {[%clk 0:01:38]} 15. c4 {[%clk 0:01:52]}  c6 {[%clk 0:01:34]} 16. Rad1 {[%clk 0:01:49]}  Qc7 {[%clk 0:01:27]} 17. d5 {[%clk 0:01:25]}  cxd5 {[%clk 0:01:01]} 18. cxd5 {[%clk 0:01:25]}  Rfe8 {[%clk 0:00:52]} 19. Qb5 {[%clk 0:01:17]}  Ne5 {[%clk 0:00:34]} 20. Nxe5 {[%clk 0:00:59]}  Qxe5 {[%clk 0:00:34]} 21. Rfe1 {[%clk 0:01:00]}  Qg5 {[%clk 0:00:30]} 22. Qa4 {[%clk 0:00:58]}  e5 {[%clk 0:00:24]} 23. d6 {[%clk 0:00:56]}  Red8 {[%clk 0:00:24]} 24. Re4 {[%clk 0:00:52]}  Qf5 {[%clk 0:00:21]} 25. Rg4+ {[%clk 0:00:42]}  Kh8 {[%clk 0:00:21]} 26. d7 {[%clk 0:00:39]}  b5 {[%clk 0:00:22]} 27. Qe4 {[%clk 0:00:32]}  Qxe4 {[%clk 0:00:22]} 28. Rxe4 {[%clk 0:00:33]}  a5 {[%clk 0:00:22]} 29. f4 {[%clk 0:00:32]}  Ra7 {[%clk 0:00:13]} 30. fxe5 {[%clk 0:00:30]}  fxe5 {[%clk 0:00:13]} 31. Rxe5 {[%clk 0:00:28]}  Raxd7 {[%clk 0:00:14]} 32. Rxd7 {[%clk 0:00:28]}  Rxd7 {[%clk 0:00:15]} 33. Rxb5 {[%clk 0:00:29]}  a4 {[%clk 0:00:16]} 34. a3 {[%clk 0:00:27]}  Rd2 {[%clk 0:00:16]} 35. Rb4 {[%clk 0:00:28]}  Kg7 {[%clk 0:00:16]} 36. g4 {[%clk 0:00:28]}  Kg6 {[%clk 0:00:16]} 37. Kh2 {[%clk 0:00:29]}  f6 {[%clk 0:00:14]} 38. Kg3 {[%clk 0:00:29]}  Rd3+ {[%clk 0:00:14]} 39. Kh4 {[%clk 0:00:28]}  Rd2 {[%clk 0:00:15]} 40. Kh3 {[%clk 0:00:29]}  Rd3+ {[%clk 0:00:15]} 41. Kh2 {[%clk 0:00:28]}  Rd2 {[%clk 0:00:15]} 42. Rxa4 {[%clk 0:00:09]}  Rxb2 {[%clk 0:00:15]} 43. Rb4 {[%clk 0:00:07]}  Ra2 {[%clk 0:00:13]} 44. Ra4 {[%clk 0:00:07]}  Rb2 {[%clk 0:00:12]} 45. Ra8 {[%clk 0:00:07]}  Kg5 {[%clk 0:00:12]} 46. Rg8+ {[%clk 0:00:06]}  Kf4 {[%clk 0:00:12]} 47. Rf8 {[%clk 0:00:07]}  Kg5 {[%clk 0:00:12]} 48. Rg8+ {[%clk 0:00:07]}  Kf4 {[%clk 0:00:12]} 49. a4 {[%clk 0:00:06]}  Ra2 {[%clk 0:00:12]} 50. Ra8 {[%clk 0:00:04]}  Kxg4 {[%clk 0:00:12]} 51. a5 {[%clk 0:00:04]}  h5 {[%clk 0:00:10]} 52. a6 {[%clk 0:00:05]}  Kf5 {[%clk 0:00:09]} 53. a7 {[%clk 0:00:05]}  Ra3 {[%clk 0:00:08]} 54. Kg1 {[%clk 0:00:05]}  Kf4 {[%clk 0:00:09]} 55. Kh2 {[%clk 0:00:05]}  f5 {[%clk 0:00:07]} 56. Kh1 {[%clk 0:00:05]}  h4 {[%clk 0:00:07]} 57. Kh2 {[%clk 0:00:05]}  Ra1 {[%clk 0:00:06]} 58. Rh8 {[%clk 0:00:03]}  Rxa7 {[%clk 0:00:06]} 59. Rxh4+ {[%clk 0:00:03]}  Kg5 {[%clk 0:00:07]} 60. Rb4 {[%clk 0:00:04]}  Re7 {[%clk 0:00:05]} 61. Kg3 {[%clk 0:00:04]} 1/2-1/2

[Event "December 19 Early 2023"]
[Site "https://www.chess.com"]
[Date "2023.12.19"]
[Round "5"]
[White "Suleymanli, Aydin"]
[Black "Durarbayli, Vasif"]
[Result "0-1"]
[Board "12"]
[TimeControl "180+1"]
[WhiteFideId "13413937"]
[BlackFideId "13402935"]
[WhiteElo "2553"]
[BlackElo "2551"]
[WhiteTeam "AZE"]
[BlackTeam "AZE"]
[WhiteClock "0:00:02"]
[BlackClock "0:00:26"]

1. e4 {[%clk 0:03:00]}  e5 {[%clk 0:02:57]} 2. Nf3 {[%clk 0:03:00]}  Nc6 {[%clk 0:02:58]} 3. Bb5 {[%clk 0:02:59]}  a6 {[%clk 0:02:58]} 4. Ba4 {[%clk 0:02:59]}  Nf6 {[%clk 0:02:58]} 5. O-O {[%clk 0:02:58]}  Be7 {[%clk 0:02:58]} 6. d3 {[%clk 0:02:57]}  b5 {[%clk 0:02:57]} 7. Bb3 {[%clk 0:02:57]}  O-O {[%clk 0:02:56]} 8. Re1 {[%clk 0:02:50]}  Bb7 {[%clk 0:02:52]} 9. Nc3 {[%clk 0:02:47]}  d6 {[%clk 0:02:48]} 10. a3 {[%clk 0:02:46]}  Nb8 {[%clk 0:02:29]} 11. d4 {[%clk 0:02:37]}  Nbd7 {[%clk 0:02:23]} 12. h3 {[%clk 0:02:12]}  h6 {[%clk 0:01:53]} 13. g3 {[%clk 0:01:07]}  exd4 {[%clk 0:01:45]} 14. Nxd4 {[%clk 0:01:06]}  c5 {[%clk 0:01:46]} 15. Nf5 {[%clk 0:01:05]}  c4 {[%clk 0:01:46]} 16. Ba2 {[%clk 0:01:04]}  Nc5 {[%clk 0:01:47]} 17. f3 {[%clk 0:01:00]}  Re8 {[%clk 0:01:35]} 18. Be3 {[%clk 0:00:45]}  Bf8 {[%clk 0:01:13]} 19. Qd2 {[%clk 0:00:44]}  d5 {[%clk 0:01:04]} 20. Qf2 {[%clk 0:00:36]}  Qc8 {[%clk 0:00:53]} 21. Rad1 {[%clk 0:00:20]}  dxe4 {[%clk 0:00:53]} 22. Nd6 {[%clk 0:00:20]}  Bxd6 {[%clk 0:00:54]} 23. Rxd6 {[%clk 0:00:20]}  exf3 {[%clk 0:00:55]} 24. Rd4 {[%clk 0:00:09]}  Nce4 {[%clk 0:00:47]} 25. Nxe4 {[%clk 0:00:09]}  Nxe4 {[%clk 0:00:47]} 26. Qh2 {[%clk 0:00:09]}  Qf5 {[%clk 0:00:35]} 27. Rf1 {[%clk 0:00:06]}  f2+ {[%clk 0:00:26]} 28. Bxf2 {[%clk 0:00:02]}  Ng5 {[%clk 0:00:26]} 0-1

[Event "December 19 Early 2023"]
[Site "https://www.chess.com"]
[Date "2023.12.19"]
[Round "5"]
[White "Alexandre, Anne Shopie Elizabeth"]
[Black "Ivic, Velimir"]
[Result "1/2-1/2"]
[Board "13"]
[TimeControl "180+1"]
[WhiteFideId "11902418"]
[BlackFideId "950122"]
[WhiteElo "2833"]
[BlackElo "2542"]
[WhiteTeam "HAI"]
[BlackTeam "SRB"]
[WhiteClock "0:00:45"]
[BlackClock "0:00:13"]

1. e4 {[%clk 0:03:00]}  c5 {[%clk 0:03:00]} 2. Nf3 {[%clk 0:03:00]}  Nc6 {[%clk 0:03:01]} 3. d4 {[%clk 0:02:58]}  cxd4 {[%clk 0:03:01]} 4. Nxd4 {[%clk 0:02:59]}  Nf6 {[%clk 0:03:01]} 5. Nc3 {[%clk 0:02:59]}  e5 {[%clk 0:03:02]} 6. Ndb5 {[%clk 0:02:59]}  d6 {[%clk 0:03:02]} 7. Bg5 {[%clk 0:02:57]}  a6 {[%clk 0:03:03]} 8. Na3 {[%clk 0:02:57]}  b5 {[%clk 0:03:04]} 9. Nd5 {[%clk 0:02:57]}  Be7 {[%clk 0:03:04]} 10. Bxf6 {[%clk 0:02:57]}  Bxf6 {[%clk 0:03:05]} 11. c3 {[%clk 0:02:57]}  Rb8 {[%clk 0:03:06]} 12. Nc2 {[%clk 0:02:56]}  Bg5 {[%clk 0:03:07]} 13. g3 {[%clk 0:02:54]}  O-O {[%clk 0:03:05]} 14. h4 {[%clk 0:02:54]}  Bh6 {[%clk 0:03:05]} 15. Bh3 {[%clk 0:02:49]}  Bb7 {[%clk 0:03:05]} 16. O-O {[%clk 0:02:44]}  g6 {[%clk 0:02:56]} 17. a4 {[%clk 0:02:42]}  Ne7 {[%clk 0:02:32]} 18. Ncb4 {[%clk 0:02:37]}  Nxd5 {[%clk 0:02:29]} 19. Nxd5 {[%clk 0:02:31]}  Kh8 {[%clk 0:01:59]} 20. axb5 {[%clk 0:02:30]}  axb5 {[%clk 0:02:00]} 21. Qd3 {[%clk 0:02:20]}  f5 {[%clk 0:02:00]} 22. Bg2 {[%clk 0:02:19]}  f4 {[%clk 0:01:31]} 23. Qxb5 {[%clk 0:02:19]}  Ba8 {[%clk 0:01:27]} 24. Qe2 {[%clk 0:02:16]}  Bxd5 {[%clk 0:01:23]} 25. exd5 {[%clk 0:02:16]}  fxg3 {[%clk 0:00:58]} 26. fxg3 {[%clk 0:02:16]}  Qb6+ {[%clk 0:00:58]} 27. Kh2 {[%clk 0:02:16]}  Qxb2 {[%clk 0:00:55]} 28. Rxf8+ {[%clk 0:02:04]}  Bxf8 {[%clk 0:00:56]} 29. Qxb2 {[%clk 0:02:03]}  Rxb2 {[%clk 0:00:57]} 30. Ra8 {[%clk 0:02:00]}  Kg7 {[%clk 0:00:57]} 31. Ra7+ {[%clk 0:02:00]}  Kg8 {[%clk 0:00:52]} 32. Kh3 {[%clk 0:01:55]}  Rc2 {[%clk 0:00:40]} 33. Rc7 {[%clk 0:01:52]}  Bh6 {[%clk 0:00:40]} 34. Bf3 {[%clk 0:01:49]}  Be3 {[%clk 0:00:39]} 35. Bg4 {[%clk 0:01:43]}  h5 {[%clk 0:00:39]} 36. Be6+ {[%clk 0:01:43]}  Kf8 {[%clk 0:00:37]} 37. Rc8+ {[%clk 0:01:42]}  Ke7 {[%clk 0:00:34]} 38. Rc7+ {[%clk 0:01:42]}  Ke8 {[%clk 0:00:34]} 39. Rc8+ {[%clk 0:01:42]}  Ke7 {[%clk 0:00:34]} 40. Rc7+ {[%clk 0:01:42]}  Kf8 {[%clk 0:00:34]} 41. Rc8+ {[%clk 0:01:41]}  Kg7 {[%clk 0:00:35]} 42. Rc7+ {[%clk 0:01:42]}  Kh6 {[%clk 0:00:28]} 43. g4 {[%clk 0:01:40]}  hxg4+ {[%clk 0:00:28]} 44. Kxg4 {[%clk 0:01:40]}  Bb6 {[%clk 0:00:25]} 45. Rc6 {[%clk 0:01:34]}  Bc5 {[%clk 0:00:24]} 46. Rc7 {[%clk 0:01:34]}  Rxc3 {[%clk 0:00:16]} 47. Bg8 {[%clk 0:01:31]}  Rc4+ {[%clk 0:00:16]} 48. Kh3 {[%clk 0:01:31]}  g5 {[%clk 0:00:16]} 49. Rh7+ {[%clk 0:01:28]}  Kg6 {[%clk 0:00:17]} 50. h5+ {[%clk 0:01:28]}  Kf5 {[%clk 0:00:17]} 51. Rf7+ {[%clk 0:01:27]}  Ke4 {[%clk 0:00:18]} 52. Bh7+ {[%clk 0:01:27]}  Kxd5 {[%clk 0:00:15]} 53. Bg8 {[%clk 0:01:26]}  Rh4+ {[%clk 0:00:16]} 54. Kg3 {[%clk 0:01:26]}  Kd4 {[%clk 0:00:10]} 55. Rh7 {[%clk 0:01:26]}  e4 {[%clk 0:00:10]} 56. Be6 {[%clk 0:01:19]}  e3 {[%clk 0:00:10]} 57. Bg4 {[%clk 0:01:19]}  Bb4 {[%clk 0:00:10]} 58. Re7 {[%clk 0:01:17]}  d5 {[%clk 0:00:10]} 59. Re6 {[%clk 0:01:17]}  Ba5 {[%clk 0:00:10]} 60. h6 {[%clk 0:01:15]}  Bc7+ {[%clk 0:00:10]} 61. Kf3 {[%clk 0:01:15]}  Bf4 {[%clk 0:00:11]} 62. Bf5 {[%clk 0:01:13]}  Be5 {[%clk 0:00:08]} 63. Bg4 {[%clk 0:01:09]}  Bh8 {[%clk 0:00:05]} 64. Ra6 {[%clk 0:01:01]}  Ke5 {[%clk 0:00:05]} 65. Re6+ {[%clk 0:00:59]}  Kd4 {[%clk 0:00:06]} 66. Ra6 {[%clk 0:01:00]}  Kc5 {[%clk 0:00:06]} 67. Ra5+ {[%clk 0:00:59]}  Kc6 {[%clk 0:00:07]} 68. Ra6+ {[%clk 0:00:58]}  Kc5 {[%clk 0:00:08]} 69. Ra5+ {[%clk 0:00:58]}  Kd6 {[%clk 0:00:08]} 70. Ra6+ {[%clk 0:00:58]}  Kc7 {[%clk 0:00:09]} 71. Re6 {[%clk 0:00:56]}  d4 {[%clk 0:00:09]} 72. Kg3 {[%clk 0:00:50]}  d3 {[%clk 0:00:08]} 73. Rxe3 {[%clk 0:00:49]}  d2 {[%clk 0:00:08]} 74. Rd3 {[%clk 0:00:48]}  Be5+ {[%clk 0:00:07]} 75. Kf3 {[%clk 0:00:48]}  Rxh6 {[%clk 0:00:07]} 76. Rxd2 {[%clk 0:00:48]}  Bf4 {[%clk 0:00:07]} 77. Rd7+ {[%clk 0:00:48]}  Kc6 {[%clk 0:00:08]} 78. Rd3 {[%clk 0:00:49]}  Kc5 {[%clk 0:00:08]} 79. Rd7 {[%clk 0:00:49]}  Ra6 {[%clk 0:00:08]} 80. Bf5 {[%clk 0:00:48]}  Ra3+ {[%clk 0:00:09]} 81. Kg4 {[%clk 0:00:48]}  Rg3+ {[%clk 0:00:09]} 82. Kh5 {[%clk 0:00:49]}  Kc6 {[%clk 0:00:10]} 83. Rd1 {[%clk 0:00:49]}  Kc5 {[%clk 0:00:10]} 84. Bg4 {[%clk 0:00:49]}  Kc4 {[%clk 0:00:11]} 85. Rd7 {[%clk 0:00:49]}  Kc3 {[%clk 0:00:11]} 86. Rd8 {[%clk 0:00:49]}  Be5 {[%clk 0:00:12]} 87. Kxg5 {[%clk 0:00:47]}  Bd4 {[%clk 0:00:11]} 88. Rc8+ {[%clk 0:00:46]}  Kd2 {[%clk 0:00:11]} 89. Kf5 {[%clk 0:00:46]}  Rc3 {[%clk 0:00:12]} 90. Rxc3 {[%clk 0:00:45]}  Bxc3 {[%clk 0:00:13]} 1/2-1/2

[Event "December 19 Early 2023"]
[Site "https://www.chess.com"]
[Date "2023.12.19"]
[Round "5"]
[White "Yeremyan, Alen"]
[Black "Kukhmazov, Arsen"]
[Result "1-0"]
[Board "16"]
[TimeControl "180+1"]
[WhiteFideId "13308998"]
[BlackFideId "24108260"]
[WhiteElo "2160"]
[BlackElo "2397"]
[WhiteTeam "ARM"]
[BlackTeam "FID"]
[WhiteClock "0:00:33"]
[BlackClock "0:00:00"]

1. e4 {[%clk 0:03:00]}  c6 {[%clk 0:02:59]} 2. Nc3 {[%clk 0:02:54]}  d5 {[%clk 0:03:00]} 3. Qe2 {[%clk 0:02:55]}  d4 {[%clk 0:03:00]} 4. Nd1 {[%clk 0:02:56]}  e5 {[%clk 0:02:58]} 5. d3 {[%clk 0:02:56]}  c5 {[%clk 0:02:59]} 6. g3 {[%clk 0:02:57]}  Nc6 {[%clk 0:02:59]} 7. Bg2 {[%clk 0:02:58]}  Bd6 {[%clk 0:02:59]} 8. f4 {[%clk 0:02:57]}  exf4 {[%clk 0:03:00]} 9. gxf4 {[%clk 0:02:58]}  Qc7 {[%clk 0:03:01]} 10. e5 {[%clk 0:02:57]}  Be7 {[%clk 0:03:02]} 11. Nf3 {[%clk 0:02:58]}  Nh6 {[%clk 0:03:02]} 12. Nf2 {[%clk 0:02:59]}  Nf5 {[%clk 0:03:03]} 13. O-O {[%clk 0:02:59]}  a5 {[%clk 0:03:03]} 14. Ne4 {[%clk 0:03:00]}  Ra6 {[%clk 0:03:03]} 15. Nfd2 {[%clk 0:02:53]}  O-O {[%clk 0:02:57]} 16. Nc4 {[%clk 0:02:52]}  b5 {[%clk 0:02:46]} 17. Na3 {[%clk 0:02:38]}  Rb6 {[%clk 0:02:43]} 18. Bd2 {[%clk 0:02:38]}  a4 {[%clk 0:02:34]} 19. Rae1 {[%clk 0:02:38]}  Be6 {[%clk 0:02:32]} 20. Ng5 {[%clk 0:02:34]}  Bxa2 {[%clk 0:01:50]} 21. Qh5 {[%clk 0:02:09]}  h6 {[%clk 0:01:45]} 22. Ne4 {[%clk 0:01:52]}  Be6 {[%clk 0:01:45]} 23. Bh3 {[%clk 0:01:51]}  g6 {[%clk 0:01:32]} 24. Qe2 {[%clk 0:01:44]}  Nb4 {[%clk 0:01:20]} 25. c4 {[%clk 0:01:28]}  bxc4 {[%clk 0:01:02]} 26. Nxc4 {[%clk 0:01:28]}  Rbb8 {[%clk 0:00:48]} 27. Ned6 {[%clk 0:01:22]}  Qd7 {[%clk 0:00:40]} 28. Nxf5 {[%clk 0:01:13]}  Bxf5 {[%clk 0:00:40]} 29. e6 {[%clk 0:01:04]}  Bxe6 {[%clk 0:00:18]} 30. f5 {[%clk 0:01:01]}  Bxc4 {[%clk 0:00:16]} 31. dxc4 {[%clk 0:00:59]}  Bg5 {[%clk 0:00:05]} 32. Bxg5 {[%clk 0:00:47]}  hxg5 {[%clk 0:00:06]} 33. Qg2 {[%clk 0:00:48]}  d3 {[%clk 0:00:05]} 34. Qxg5 {[%clk 0:00:40]}  Qd4+ {[%clk 0:00:05]} 35. Kh1 {[%clk 0:00:40]}  Rb6 {[%clk 0:00:04]} 36. f6 {[%clk 0:00:38]}  d2 {[%clk 0:00:02]} 37. Rd1 {[%clk 0:00:39]}  Qxb2 {[%clk 0:00:02]} 38. Rxd2 {[%clk 0:00:38]}  Qc3 {[%clk 0:00:02]} 39. Bg2 {[%clk 0:00:33]}  a3 {[%clk 0:00:02]} 40. Rdf2 {[%clk 0:00:34]}  Qd3 {[%clk 0:00:01]} 41. Rf3 {[%clk 0:00:33]}  Qd2 {[%clk 0:00:00]} 42. Qxd2 {[%clk 0:00:33]} 1-0

[Event "December 19 Early 2023"]
[Site "https://www.chess.com"]
[Date "2023.12.19"]
[Round "5"]
[White "Samunenkov, Ihor"]
[Black "Liascovich, Lucas"]
[Result "0-1"]
[Board "17"]
[TimeControl "180+1"]
[WhiteFideId "14187086"]
[BlackFideId "108634"]
[WhiteElo "2473"]
[BlackElo "2455"]
[WhiteTeam "UKR"]
[BlackTeam "ARG"]
[WhiteClock "0:00:00"]
[BlackClock "0:01:15"]

1. d4 {[%clk 0:03:00]}  d5 {[%clk 0:02:53]} 2. Nc3 {[%clk 0:03:00]}  Nf6 {[%clk 0:02:52]} 3. Bf4 {[%clk 0:03:01]}  a6 {[%clk 0:02:48]} 4. e3 {[%clk 0:03:01]}  c5 {[%clk 0:02:48]} 5. dxc5 {[%clk 0:02:57]}  Nc6 {[%clk 0:02:46]} 6. a3 {[%clk 0:02:56]}  e5 {[%clk 0:02:46]} 7. Bg5 {[%clk 0:02:55]}  Be6 {[%clk 0:02:43]} 8. b4 {[%clk 0:02:53]}  Be7 {[%clk 0:02:44]} 9. Nf3 {[%clk 0:02:51]}  O-O {[%clk 0:02:43]} 10. Be2 {[%clk 0:02:47]}  d4 {[%clk 0:02:43]} 11. exd4 {[%clk 0:02:24]}  exd4 {[%clk 0:02:44]} 12. Na4 {[%clk 0:02:12]}  Ne4 {[%clk 0:02:40]} 13. Bxe7 {[%clk 0:02:11]}  Qxe7 {[%clk 0:02:39]} 14. O-O {[%clk 0:02:09]}  Rad8 {[%clk 0:02:38]} 15. Bd3 {[%clk 0:02:04]}  f5 {[%clk 0:02:34]} 16. Re1 {[%clk 0:01:57]}  Qf6 {[%clk 0:02:30]} 17. Qc1 {[%clk 0:01:44]}  h6 {[%clk 0:02:30]} 18. Nd2 {[%clk 0:01:34]}  Bd5 {[%clk 0:02:17]} 19. Nb6 {[%clk 0:01:28]}  Nc3 {[%clk 0:02:12]} 20. Nxd5 {[%clk 0:01:26]}  Nxd5 {[%clk 0:02:13]} 21. Nc4 {[%clk 0:01:25]}  Rfe8 {[%clk 0:02:08]} 22. Qd2 {[%clk 0:01:24]}  Rf8 {[%clk 0:02:06]} 23. Nd6 {[%clk 0:01:21]}  b5 {[%clk 0:02:04]} 24. Nxf5 {[%clk 0:01:06]}  Ne5 {[%clk 0:01:59]} 25. Ng3 {[%clk 0:00:56]}  Ng4 {[%clk 0:01:52]} 26. Ne4 {[%clk 0:00:54]}  Qh4 {[%clk 0:01:50]} 27. h3 {[%clk 0:00:52]}  Ne5 {[%clk 0:01:50]} 28. Ng3 {[%clk 0:00:42]}  Nc4 {[%clk 0:01:46]} 29. Bxc4 {[%clk 0:00:41]}  bxc4 {[%clk 0:01:47]} 30. Re4 {[%clk 0:00:41]}  Nf4 {[%clk 0:01:40]} 31. Rd1 {[%clk 0:00:34]}  d3 {[%clk 0:01:36]} 32. cxd3 {[%clk 0:00:29]}  cxd3 {[%clk 0:01:35]} 33. c6 {[%clk 0:00:25]}  Qg5 {[%clk 0:01:30]} 34. c7 {[%clk 0:00:18]}  Rc8 {[%clk 0:01:30]} 35. Qa2+ {[%clk 0:00:10]}  Kh8 {[%clk 0:01:27]} 36. Qc4 {[%clk 0:00:10]}  Qf6 {[%clk 0:01:27]} 37. Rd2 {[%clk 0:00:09]}  Qd6 {[%clk 0:01:27]} 38. Rd4 {[%clk 0:00:05]}  Qf6 {[%clk 0:01:25]} 39. R4xd3 {[%clk 0:00:02]}  Nxd3 {[%clk 0:01:23]} 40. Qxd3 {[%clk 0:00:03]}  Rxc7 {[%clk 0:01:21]} 41. Ne4 {[%clk 0:00:03]}  Rc1+ {[%clk 0:01:17]} 42. Kh2 {[%clk 0:00:02]}  Qe5+ {[%clk 0:01:18]} 43. g3 {[%clk 0:00:00]}  Qa1 {[%clk 0:01:15]} 0-1

[Event "December 19 Early 2023"]
[Site "https://www.chess.com"]
[Date "2023.12.19"]
[Round "5"]
[White "Matinian, Nikita"]
[Black "Svane, Frederik"]
[Result "0-1"]
[Board "18"]
[TimeControl "180+1"]
[WhiteFideId "24129100"]
[BlackFideId "12923044"]
[WhiteElo "2417"]
[BlackElo "2502"]
[WhiteTeam "FID"]
[BlackTeam "GER"]
[WhiteClock "0:00:00"]
[BlackClock "0:00:20"]

1. e4 {[%clk 0:03:00]}  c5 {[%clk 0:02:59]} 2. Nc3 {[%clk 0:03:00]}  e6 {[%clk 0:02:56]} 3. d4 {[%clk 0:03:00]}  cxd4 {[%clk 0:02:57]} 4. Qxd4 {[%clk 0:03:01]}  Nc6 {[%clk 0:02:57]} 5. Qe3 {[%clk 0:03:00]}  a6 {[%clk 0:02:57]} 6. Nf3 {[%clk 0:03:00]}  b5 {[%clk 0:02:57]} 7. Bd2 {[%clk 0:02:57]}  Bb7 {[%clk 0:02:57]} 8. O-O-O {[%clk 0:02:56]}  Nge7 {[%clk 0:02:28]} 9. h4 {[%clk 0:02:55]}  Rc8 {[%clk 0:02:26]} 10. h5 {[%clk 0:02:54]}  h6 {[%clk 0:02:24]} 11. Kb1 {[%clk 0:02:40]}  b4 {[%clk 0:02:17]} 12. Nd5 {[%clk 0:02:32]}  d6 {[%clk 0:01:59]} 13. Nxb4 {[%clk 0:02:12]}  Nxb4 {[%clk 0:01:45]} 14. Bxb4 {[%clk 0:02:13]}  Qc7 {[%clk 0:01:45]} 15. c3 {[%clk 0:01:34]}  Nc6 {[%clk 0:01:45]} 16. Ba3 {[%clk 0:01:35]}  Be7 {[%clk 0:01:45]} 17. Rh3 {[%clk 0:01:26]}  O-O {[%clk 0:01:40]} 18. Rg3 {[%clk 0:01:26]}  Kh8 {[%clk 0:01:41]} 19. Bd3 {[%clk 0:01:18]}  Na5 {[%clk 0:01:23]} 20. e5 {[%clk 0:00:56]}  Bxf3 {[%clk 0:00:52]} 21. Rxf3 {[%clk 0:00:57]}  d5 {[%clk 0:00:50]} 22. Bxe7 {[%clk 0:00:54]}  Qxe7 {[%clk 0:00:51]} 23. Rf6 {[%clk 0:00:50]}  Nc4 {[%clk 0:00:31]} 24. Rxh6+ {[%clk 0:00:27]}  Kg8 {[%clk 0:00:31]} 25. Qf4 {[%clk 0:00:04]}  gxh6 {[%clk 0:00:27]} 26. Qxh6 {[%clk 0:00:03]}  f6 {[%clk 0:00:21]} 27. Bc2 {[%clk 0:00:00]}  Qg7 {[%clk 0:00:20]} 0-1

[Event "December 19 Early 2023"]
[Site "https://www.chess.com"]
[Date "2023.12.19"]
[Round "5"]
[White "Chigaev, Maksim"]
[Black "Maurizzi, Marc`Andria"]
[Result "1-0"]
[Board "19"]
[TimeControl "180+1"]
[WhiteFideId "4108116"]
[BlackFideId "36083534"]
[WhiteElo "2561"]
[BlackElo "2417"]
[WhiteTeam "ESP"]
[BlackTeam "FRA"]
[WhiteClock "0:00:05"]
[BlackClock "0:00:00"]

1. e4 {[%clk 0:03:00]}  c6 {[%clk 0:02:59]} 2. d4 {[%clk 0:03:00]}  d5 {[%clk 0:02:59]} 3. e5 {[%clk 0:03:00]}  c5 {[%clk 0:03:00]} 4. c3 {[%clk 0:02:59]}  Nc6 {[%clk 0:02:54]} 5. Be3 {[%clk 0:02:58]}  cxd4 {[%clk 0:02:37]} 6. cxd4 {[%clk 0:02:55]}  Bf5 {[%clk 0:02:38]} 7. Nc3 {[%clk 0:02:51]}  e6 {[%clk 0:02:35]} 8. Bd3 {[%clk 0:02:45]}  Bxd3 {[%clk 0:02:28]} 9. Qxd3 {[%clk 0:02:45]}  Nge7 {[%clk 0:02:27]} 10. Nge2 {[%clk 0:02:45]}  Nf5 {[%clk 0:02:27]} 11. O-O {[%clk 0:02:45]}  Be7 {[%clk 0:02:27]} 12. Ng3 {[%clk 0:02:39]}  Nxg3 {[%clk 0:02:26]} 13. fxg3 {[%clk 0:02:26]}  O-O {[%clk 0:02:27]} 14. a3 {[%clk 0:02:17]}  Rc8 {[%clk 0:02:24]} 15. Rf4 {[%clk 0:02:14]}  Bg5 {[%clk 0:02:13]} 16. Rg4 {[%clk 0:02:10]}  Bxe3+ {[%clk 0:02:12]} 17. Qxe3 {[%clk 0:02:11]}  f5 {[%clk 0:02:12]} 18. exf6 {[%clk 0:02:09]}  Qxf6 {[%clk 0:02:11]} 19. Re1 {[%clk 0:02:03]}  Rce8 {[%clk 0:02:07]} 20. h3 {[%clk 0:01:57]}  e5 {[%clk 0:02:02]} 21. Nxd5 {[%clk 0:01:50]}  Qf7 {[%clk 0:01:51]} 22. Qg5 {[%clk 0:01:24]}  Kh8 {[%clk 0:01:37]} 23. dxe5 {[%clk 0:00:54]}  h6 {[%clk 0:01:37]} 24. Qd2 {[%clk 0:00:49]}  Rd8 {[%clk 0:00:52]} 25. Rf4 {[%clk 0:00:29]}  Qg6 {[%clk 0:00:52]} 26. Rxf8+ {[%clk 0:00:19]}  Rxf8 {[%clk 0:00:53]} 27. Qe3 {[%clk 0:00:17]}  Rf5 {[%clk 0:00:50]} 28. Nf4 {[%clk 0:00:16]}  Qg5 {[%clk 0:00:31]} 29. Nd3 {[%clk 0:00:08]}  Qe7 {[%clk 0:00:24]} 30. e6 {[%clk 0:00:07]}  Rf6 {[%clk 0:00:18]} 31. Kh2 {[%clk 0:00:08]}  Nd8 {[%clk 0:00:16]} 32. Nf4 {[%clk 0:00:08]}  Qe8 {[%clk 0:00:14]} 33. Qe5 {[%clk 0:00:07]}  Nc6 {[%clk 0:00:14]} 34. Qd6 {[%clk 0:00:05]}  Kh7 {[%clk 0:00:12]} 35. Re2 {[%clk 0:00:05]}  Ne7 {[%clk 0:00:10]} 36. Qd3+ {[%clk 0:00:05]}  Kh8 {[%clk 0:00:09]} 37. Qd7 {[%clk 0:00:05]}  Qf8 {[%clk 0:00:09]} 38. Nd5 {[%clk 0:00:04]}  Nxd5 {[%clk 0:00:08]} 39. Qxd5 {[%clk 0:00:05]}  Qe8 {[%clk 0:00:03]} 40. e7 {[%clk 0:00:05]}  Rc6 {[%clk 0:00:00]} 41. Qd8 {[%clk 0:00:05]} 1-0